Cogmind - Beta 15 @@@ ROGUE MODE // 2025.07.24 @ 07:59:34 Player: shapeshifter Result: Destroyed by E8-AVW(R) with Subdweller Machine Gun Performance ------------- Evolutions (0) 0 Regions Visited (2) 400 Robots Destroyed (15) 75 Value Destroyed (326) 326 Prototype IDs (0) 0 Alien Tech Used (0) 0 Bonus (0) 0 TOTAL SCORE: 801 Bonus ------- None Cogmind --------- Core Integrity 0/250 Matter 300/300 Energy 159/160 System Corruption 0% Temperature Cool (0) Movement Rolling (145) Ox3 Location -10/Subcaves Parts ------- > --- POWER (1) -------- Light Nuclear Core > --- PROPULSION (2) --- Aluminum Leg Compact Wheel > --- UTILITY (2) ------ High-capacity Storage Unit Structural Scanner > --- WEAPON (2) ------- EM Shotgun Riot Gun > --- INVENTORY (20) --- Wheel Cooling System Large Storage Unit High-capacity Battery (250) Salvage Targeting Computer EM Shotgun Subdweller Beam Cannon Peak State ------------ > --- POWER ------------ Light Nuclear Core > --- PROPULSION ------- Aluminum Leg Compact Wheel > --- UTILITY ---------- High-capacity Storage Unit Structural Scanner > --- WEAPON ----------- EM Shotgun Riot Gun > --- INVENTORY -------- Wheel Cooling System Large Storage Unit High-capacity Battery Salvage Targeting Computer EM Shotgun Subdweller Beam Cannon [Rating: 13] Favorites ----------- Power Light Ion Engine Engine Light Ion Engine Power Core Light Nuclear Core Propulsion Light Treads Treads Light Treads Leg Aluminum Leg Wheel Compact Wheel Utility Structural Scanner Device Structural Scanner Storage High-capacity Storage Unit Weapon EM Shotgun Energy Gun EM Shotgun Ballistic Gun Assault Rifle Build | -11 -10 -10 ------- Run | Yrd Mat Sub Slots Evolved . | . . . Power . | . . . Propulsion . | . . . Utility . | . . . Weapon . | . . . Parts Attached 16 | 7 3 6 Power 3 | 1 . 2 Engine 2 | 1 . 1 Core 1 | . . 1 Reactor . | . . . Propulsion 4 | 2 . 2 Treads 2 | 2 . . Leg 1 | . . 1 Wheel 1 | . . 1 Hover . | . . . Flight . | . . . Utility 4 | 1 2 1 Device 1 | . 1 . Storage 3 | 1 1 1 Processor . | . . . Hackware . | . . . Protection . | . . . Artifact . | . . . Weapon 5 | 3 1 1 Energy Gun 4 | 2 1 1 Energy Cannon . | . . . Ballistic Gun 1 | 1 . . Ballistic Cannon . | . . . Launcher . | . . . Special Weapon . | . . . Impact Weapon . | . . . Slashing Weapon . | . . . Piercing Weapon . | . . . Special Melee Weapon . | . . . Unidentified Prototypes . | . . . Parts Lost 6 | . . 6 Power 2 | . . 2 Propulsion 2 | . . 2 Utility . | . . . Weapon 2 | . . 2 Highest Loss Streak 3 | . . 3 To Critical Strikes . | . . . Average Backups 7 | 3 8 8 Power . | . 1 . Propulsion 2 | 1 2 1 Utility 3 | . 2 4 Weapon 1 | . 1 1 Tool/Special . | . . . Unused Backups 7 | . . 7 Power . | . . . Propulsion 1 | . . 1 Utility 4 | . . 4 Weapon 2 | . . 2 Tool/Special . | . . . Average Slot Usage (%) 94 | . 84 98 Engine 11 | . 14 10 Core 2 | . . 3 Treads 17 | . 27 13 Leg 2 | . . 3 Wheel 7 | . . 10 Device 9 | . . 14 Storage 14 | . 14 14 Energy Gun 21 | . 13 24 Ballistic Gun 6 | . 14 2 Peak Build Rating 13 | 6 9 13 Average Rating 8 | 4 6 9 On Entrance 5 | . 6 9 Naked Turns . | . . . Heaviest Build 52 | 12 29 52 Greatest Support 40 | 40 40 40 Greatest Overweight (x) 3 | 1 1 3 Average Overweight (x) 1 | . . 1 Largest Inventory Capacity 20 | 8 15 20 Average Capacity 16 | 7 13 18 Most Carried 14 | 5 14 12 Average Carried 8 | 3 8 8 Final Capacity 20 | 8 15 20 Final Carried 12 | 4 12 7 Class Distribution -------------------- 100% | Mutant Dominant Class ---------------- Mutant | -10/Materials Mutant | -10/Subcaves Resources | -11 -10 -10 ----------- Run | Yrd Mat Sub Matter Collected 463 | 294 83 86 Remotely . | . . . Salvage Created 501 | 162 183 156 Parts 37 | 10 21 6 Haulers Intercepted . | . . . Recyclers Shooed 1 | . 1 . Parts Field Recycled . | . . . Retrieved Matter . | . . . Parts Self-Destructed 7 | . . 7 Prevented . | . . . Kills | -11 -10 -10 ------- Run | Yrd Mat Sub Combat Hostiles Destroyed 8 | . 5 3 Guns 8 | . 5 3 Classes Destroyed 8 | 2 5 1 Builder 1 | . 1 . Tunneler 3 | 3 . . Recycler 1 | 1 . . Operator 1 | . 1 . Watcher 1 | . 1 . Swarmer 3 | . 3 . Grunt 4 | . 2 2 Subdweller 1 | . . 1 Best Kill Streak 4 | 2 4 2 Combat Bots Only 4 | . 4 2 Max Kills in Single Turn 2 | 1 2 1 Gunslinging . | . . . Exploded . | . . . Melee . | . . . Uniques/NPCs Destroyed . | . . . Combat | -11 -10 -10 -------- Run | Yrd Mat Sub Hostile Shots Fired 79 | . 33 46 Missed 28 | . 11 17 Hits 51 | . 22 29 Projectile 51 | . 22 29 Critical Strikes 1 | . . 1 Damage Taken 889 | . 226 663 Core 258 | . 55 203 Absorbed by Shields . | . . . Core Remaining (%) 100 | 100 . . Volleys Fired 47 | 8 17 22 Largest 2 | 2 2 2 Hottest 95 | 70 70 95 Shots Fired 81 | 16 34 31 Gun 81 | 16 34 31 Cannon . | . . . Launcher . | . . . Special . | . . . Kinetic 31 | 8 17 6 Thermal 37 | 8 15 14 Explosive . | . . . Electromagnetic 13 | . 2 11 Robot Hit Streak 11 | 4 4 11 Robot Miss Streak 5 | 5 3 1 Penetration Max . | . . . Secondary Targets 1 | . 1 . Max Gunslinging Chain 1 | . 1 . Shots Hit Robots 42 | 8 16 18 Core Hits 27 | 5 13 9 Critical Kills . | . . . Critical Parts Destroyed . | . . . Critical Strikes 1 | 1 . . Burn 1 | 1 . . Melee Attacks . | . . . Impact . | . . . Slashing . | . . . Piercing . | . . . Sneak Attacks . | . . . Combat Hostiles . | . . . Follow-up Attacks . | . . . Damage Inflicted 646 | 122 305 219 Guns 586 | 122 245 219 Cannons . | . . . Explosions 60 | . 60 . Melee . | . . . Ramming . | . . . Kinetic 247 | 45 142 60 Thermal 237 | 77 74 86 Explosive . | . . . Electromagnetic 162 | . 89 73 Impact . | . . . Slashing . | . . . Piercing . | . . . Highest Corruption . | . . . Average Corruption . | . . . Corruption Purged . | . . . Corruption Blocked . | . . . Overload Shots . | . . . Overflow Damage . | . . . Projectiles . | . . . Explosions . | . . . Melee . | . . . Knockbacks . | . . . Impact . | . . . Kinetic . | . . . Secondary . | . . . Self-Inflicted Damage . | . . . Shots . | . . . Rammed . | . . . Targets Rammed . | . . . Kicked . | . . . Crushed . | . . . Highest Temperature 90 | 27 90 2 Average Temperature 27 | 13 34 2 Received Heat Transfer 264 | . 81 183 Siege Activations . | . . . Martial Activations . | . . . Shielding Activations . | . . . Robots Disrupted 1 | . 1 . Combat Hostiles . | . . . Robots Corrupted . | . . . Combat Hostiles . | . . . Parts Fried . | . . . Impact Corruptions . | . . . Robots Melted . | . . . Combat Hostiles . | . . . Parts Melted 1 | . . 1 Heat Transferred 718 | 296 222 200 Parts Sabotaged . | . . . Parts Stolen . | . . . Parts Stripped . | . . . Power Chain Reactions 1 | . 1 . Alert | -11 -10 -10 ------- Run | Yrd Mat Sub Maximum Alert Level . | . . . Low Security (%) 100 | 100 100 . Level 1 . | . . . Level 2 . | . . . Level 3 . | . . . Level 4 . | . . . Level 5 . | . . . High Security . | . . . Max Security . | . . . Peak Influence 159 | 10 159 . Initial . | . . . Average 49 | 2 62 . Influence Increases 278 | 20 208 50 Destroy 0b10 Robot/C 140 | . 100 40 Destroy 0b10 Robot/NC 35 | 20 15 . Destroy Leader 32 | . 22 10 Successful Hack 14 | . 14 . Disable Machine 45 | . 45 . Destroy Structure 12 | . 12 . Influence Decreases 278 | 20 132 126 Entered New Map 37 | . . 37 Time Decay 221 | 20 132 69 Lost Part 20 | . . 20 Squads Dispatched . | . . . Investigation . | . . . Extermination . | . . . Reinforcement . | . . . Assault . | . . . Garrison . | . . . Intercept . | . . . Searches Triggered . | . . . Construction Impeded . | . . . Haulers Reinforced . | . . . Active Scanning Responses . | . . . Cargo Convoy Interrupts . | . . . Stealth | -11 -10 -10 --------- Run | Yrd Mat Sub Distress Signals 1 | . 1 . Communications Jammed . | . . . Distress Signals . | . . . Times Spotted 13 | . 7 6 Peak Tracking Total 4 | . 4 2 Tactical Retreats . | . . . Traps | -11 -10 -10 ------- Run | Yrd Mat Sub Traps Triggered 3 | . 1 2 Indirectly . | . . . Trap Hack Attempts . | . . . Triggered . | . . . Disarmed . | . . . Reprogrammed . | . . . Reused . | . . . Traps Extracted . | . . . Installed . | . . . Triggered . | . . . Machines | -11 -10 -10 ---------- Run | Yrd Mat Sub Machines Disabled 3 | . 3 . Max in Single Turn 2 | . 2 . Machines Repaired . | . . . Machines Dismantled . | . . . Machines Sabotaged . | . . . Overloaded Fab Kills . | . . . Hacking | -11 -10 -10 --------- Run | Yrd Mat Sub Machines Accessed 4 | . 1 3 Terminals 1 | . 1 . Fabricators . | . . . Repair Stations . | . . . Recycling Units . | . . . Scanalyzers . | . . . Garrison Access . | . . . Total Hacks 8 | . 2 6 Successful 7 | . 1 6 Failed 1 | . 1 . Catastrophic 1 | . 1 . Database Lockouts . | . . . Manual 2 | . 2 . Terminals 2 | . 2 . Fabricators . | . . . Repair Stations . | . . . Recycling Units . | . . . Scanalyzers . | . . . Garrison Access . | . . . Terminal Hacks 6 | . . 6 Record 5 | . . 5 Open Door 1 | . . 1 Fabricator Hacks . | . . . Repair Station Hacks . | . . . Recycling Unit Hacks . | . . . Scanalyzer . | . . . Garrison Access Hacks . | . . . Unauthorized Hacks 1 | . 1 . Terminals 1 | . 1 . Botnet 1 | . 1 . Fabricators . | . . . Repair Stations . | . . . Recycling Units . | . . . Scanalyzers . | . . . Garrison Access . | . . . Data Cores Recovered . | . . . Used . | . . . Hacking Detections 1 | . 1 . Full Trace Events . | . . . Feedback Events . | . . . Feedback Blocked . | . . . Robot Schematics Acquired . | . . . Robots Built . | . . . Authchips . | . . . Time . | . . . Total Robot Build Rating . | . . . Part Schematics Acquired . | . . . Parts Built . | . . . Authchips . | . . . Time . | . . . Total Part Build Rating . | . . . Parts Repaired . | . . . Time . | . . . Parts Recycled . | . . . Recycled Matter . | . . . Retrieved Matter . | . . . Retrieved Components . | . . . Parts Scanalyzed . | . . . Part Schematics Acquired . | . . . Parts Damaged . | . . . Bothacking | -11 -10 -10 ------------ Run | Yrd Mat Sub Used RIF Installer . | . . . Robots Hacked . | . . . Non-combat . | . . . Combat . | . . . Robot Hacks Applied . | . . . Relay Couplers Released . | . . . Fabnet Peak Effective % . | . . . Robots Rewired . | . . . Allies Hacked . | . . . Hacks Repelled . | . . . Allies | -11 -10 -10 -------- Run | Yrd Mat Sub Total Allies . | . . . Largest Group . | . . . Highest-Rated Group . | . . . Highest-Rated Ally . | . . . Total Orders . | . . . Ally Attacks . | . . . Total Damage . | . . . Kills . | . . . Allies Corrupted . | . . . Allies Melted . | . . . Intel | -11 -10 -10 ------- Run | Yrd Mat Sub Active Infowar (turns) 959 | . 6 953 Structural 959 | . 6 953 Robot Analysis Total . | . . . Derelict Logs Recovered . | . . . Drone Launches . | . . . Drone Recoveries . | . . . Exploration | -11 -10 -10 ------------- Run | Yrd Mat Sub Turns Passed 1485 | 119 413 953 Spaces Moved 899 | 64 194 641 Core 25 | 25 . . Treads 336 | 39 194 103 Legs . | . . . Wheels 538 | . . 538 Hover . | . . . Flight . | . . . Fastest Speed 50 | 50 160 130 Average Speed 142 | 124 162 138 Slowest Speed 240 | 160 240 240 Overloaded Moves . | . . . Propulsion Burnouts . | . . . Robots Hopped . | . . . Potential Cave-ins . | . . . Cave-ins Triggered . | . . . Exploration Rate (%) 24 | 4 38 32 Regions Visited 2 Branch Regions 1 Pre-discovered Areas . | . . . Known Exits Taken . | . . . Unknown Exits Taken 2 | 1 1 . Scrap Searched . | . . . Spaces Dug . | . . . Terrain Destroyed 14 | . 14 . Melee . | . . . Projectile . | . . . AOE 14 | . 14 . Terrain Rammed . | . . . Walls Destroyed . | . . . Machines Disabled . | . . . Actions | -11 -10 -10 --------- Run | Yrd Mat Sub Total 1018 | 86 259 673 Wait 32 | . 32 . Move 897 | 63 193 641 Hop . | . . . Pick Up 22 | 8 12 2 Fast Attach 2 | 2 . . Attach 13 | 4 3 6 Detach . | . . . Swap 3 | 1 1 1 Drop 2 | . 1 1 Fire 47 | 8 17 22 Melee . | . . . Ram . | . . . Kick . | . . . Crush . | . . . Escape Stasis . | . . . Rewire . | . . . Trap . | . . . Miscellaneous . | . . . Route ------- -11/Scrapyard -10/Materials (discovered 2 exits: [*Mat] / *Sub) -10/Subcaves (discovered 1 exit: [*Mat]) History --------- Turn | Location | Event 6 | -11/Scrapyard | Discovered new exit (range 15) 120 | -11/Scrapyard | Entered Materials 310 | -10/Materials | Build established: Mutant 348 | -10/Materials | Discovered new exit (range 15) 501 | -10/Materials | Discovered new exit (range 6) 533 | -10/Materials | Entered Subcaves 644 | -10/Subcaves | Discovered new exit (range 12) 879 | -10/Subcaves | Visited Clippyterm 883 | -10/Subcaves | Learned Factory stockpile data 1086 | -10/Subcaves | A swath of the cavern ceiling suddenly collapsed 1231 | -10/Subcaves | Core integrity fell below 50% 1266 | -10/Subcaves | Lost 3 parts (1p1n1w) 1469 | -10/Subcaves | Core integrity fell below 20% 1486 | -10/Subcaves | Destroyed by E8-AVW(R) with Subdweller Machine Gun Last Messages --------------- >>Record! "Tab" It looks like you're biased against spaces, I think you need more help than I can offer. >>Record! "LRC-V1" It looks like you're REDACTED, I can suggest REDACTED and REDACTED. Also definitely avoid REDACTED. 01031_ KC-WEO(z): "She is not going to be happy we haven't found any suitable candidates yet." A swath of the cavern ceiling suddenly collapses. 01214_ Sml. Laser destroyed. 01235_ Lgt. Ion Engine destroyed. 01235_ Lgt. Treads destroyed. 01268_ Acquired Riot Gun. 01274_ Sub. Monowheel melted. 01274_ ZT-5LK(R) destroyed. 01285_ Acquired 30 matter. 01287_ Acquired Sub. Beam Cannon. 01427_ TA-F3W(u) tweaks Twisted Machinery. Map ----- +----------------------------------------------------+ | | | | | | | ?????????????????????????????????????????????????? | | ?????????????????????????????????????????????????? | | ?????????????????????????????????????????????????? | | ?????????????????????????????????????????????????? | | ?????????????????????????????????????????????????? | | ?????????????????????????????????????????????????? | | ?????????????????????????????????????????????????? | | ?????????????????????????????????????????????????? | | ?????????????????????????????????????????????????? | | ?????????????????????????????????????????????????? | | ?????????????????????????????????????????????????? | | ?????????????????????????????????????????????????? | | ?????????????????????????????????????????????????? | | ####??#####??????????????????????????????????????? | | ###########??????######????????????????????######? | | ###### ##############????????#########??######## | | ######### ##???????###########?###" ### | | #### ##???????### # ###### ## | | ### ####???????## ####?## ## | | ## # ## ################ ###### # | | ## ## # ################# ### ##### # | | ## # # #### ### ## ## #### | | ### #### @ ## ## | | ### ^ ""## R ###"" | | #### ## ;; ^ ## # # # ## ####" | | ####### ############# ###" ""###" | | ####### ##################""""### | | ##???### ###????????########" ### | | ##???#### ### ##?????????????#### #### | | ????### ### #####???????????####### | | # ?### ### ## #####?????????????#### | | ##% ## ####^ ## ##?????????????### | | ##### ###### ###???????????#### | | #??### ## ###????????????## | | #?#### ^ ## ####????????????### | | #### ###?????????????### | | #### ###??????????????### | | ##### ##??????????????#### | | ###### ## ######???????????????### | | ####?## #### ########???????????????? | | #####??##################????????????????????? # | | ####???################?????????????????????? ## | | ???????????????????????????????????????????## ### | | ???????????????????????????????????????????#####? | | ???????????????????????????????????????????####?? | | ????????????????????????????????????????????????? | | ???????????????????????######???????????????????? | +----------------------------------------------------+ Best States ------------- Heat Dissipation 25 Energy Generation 14 Energy Capacity 160 Matter Stores 300 Matter Capacity 300 Sight Range 16 Terrain Scan Density 10 Evasion (%) 50 Recoil Reduction 2 Item Schematics ----------------- None Robot Schematics ------------------ None Fabricated ------------ Nothing Repaired ---------- Nothing Alien Tech Used ----------------- None Achievements -------------- None Challenges ------------ None Game ------ Seed ElectronPhysicsLoader Manual? 0 Play Time 00:10:01 Cumulative 46.9 hours Start 2025.07.24 @ 07:53:08 End 2025.07.24 @ 07:59:34 Sessions 1 Manual Loads 0 Difficulty Rogue Special Mode None Game No. 120 Rogue 120 Adventurer 0 Explorer 0 Win Type - Total 0 Types 0/0/0/0/0/0/0/0/0/0 Lore% 39 Gallery% 38 Achievement% 31 Wizard Run 0 Options --------- Layout 1 ASCII 0 Keyboard 0 Movement Mouse Keybinds 0 Fullscreen 1 Font 24/Smallcaps Map View 50x35 Zoom Use 0% Tactical HUD 1 Map Filters NONE Filters NONE Steam 1 RUN: 8beb6553-4292-4056-a237-afd782a1bc8f